[Event "American Cup Open Elimination 2024"]
[Site "Saint Louis"]
[Date "2024.03.16"]
[Round "2.3"]
[White "Sevian, Samuel"]
[Black "So, Wesley"]
[Result "0-1"]
[ECO "C54"]
[WhiteElo "2697"]
[BlackElo "2789"]
[Annotator "TA"]
[PlyCount "138"]
[EventDate "2024.03.11"]
[EventType "k.o."]
[EventCountry "USA"]
[SourceTitle "playchess.com"]
[Source "ChessBase"]
[SourceQuality "1"]
[TimeControl "1500+10"]

{[%evp 65,138,-94,-103,-104,-104,-107,-108,-158,-87,-132,-82,-80,-69,-100,-87,-308,-308,-291,-288,-481,-422,-507,-493,-474,-486,-479,-438,-494,-459,-1216,-1345,-1117,-561,-454,-325,-305,-315,-2178,-1936,-2250,-1701,-1441,-1340,-5989,-5946,-5181,-4395,-29977,-5281,-6107,-6111,-29980,-29981,-29982,-29982,-29983,-29983,-29984,-29985,-29986,-29981,-29981,0,-29986,-29987,-29989,-29990,-29994,-29994,-29995,-29995,-29995,-29992,-29995,-29996]} 1. e4 {[%emt 0:10:01]} e5 {[%emt 0:10:02]} 2. Nf3 {[%emt 0:00:01]} Nc6 {[%emt 0:00:01]} 3. Bc4 {[%emt 0:00:01]} Nf6 {[%emt 0:00:02]} 4. d3 {[%emt 0:00:01]} Bc5 {[%emt 0:00:02]} 5. c3 {[%emt 0:00:00]} O-O {[%emt 0:00:02]} 6. Bg5 {[%emt 0:00:02]} Be7 {[%emt 0:00:03] C54: Italienische Partie (Hauptvariante).} 7. Nbd2 {[%emt 0:00:02]} Na5 $5 {[%emt 0:00:37][%mdl 4] Eine vielversprechende Nebenvariante.} 8. Bb5 {[%emt 0:01:15]} h6 {[%emt 0:01:16] 8...d6 ist aktuell in Mode.} 9. Bh4 {[%emt 0:00:08]} d6 {[%emt 0:00:42]} 10. Nf1 {[%emt 0:00:41]} d5 {[%emt 0:02:26]} 11. Qe2 $146 {[%emt 0:02:57]} ({Predecessor:} 11. Bxf6 Bxf6 12. Ne3 c6 13. Ba4 d4 14. cxd4 exd4 15. Nf1 b5 16. Bc2 c5 17. Ng3 {0-1 Sadhwani,R (2517)-Kravtsiv,M (2660) Lindores Abbey Blitz Tal Memorial 2021 (5.29)}) 11... a6 {[%emt 0:00:34]} 12. Ba4 {[%emt 0:00:01]} dxe4 {[%emt 0:00:04]} 13. dxe4 {[%emt 0:00:08]} b5 {[%emt 0:00:01]} 14. Bc2 {[%emt 0:00:37]} Nc4 {[%emt 0:00:08]} 15. Rd1 {[%emt 0:00:43]} Nd7 {[%emt 0:01:11]} 16. Bxe7 {[%emt 0:00:49]} Qxe7 {[%emt 0:00:01]} 17. Bb3 {[%emt 0:02:12]} Ndb6 {[%emt 0:00:29]} 18. Ne3 {[%emt 0:00:32]} Nxe3 {[%emt 0:00:17]} 19. Qxe3 {[%emt 0:00:08]} a5 {[%emt 0:00:02]} 20. O-O {[%emt 0:01:04]} a4 {[%emt 0:00:01]} 21. Bd5 {[%emt 0:00:09]} Rb8 {[%emt 0:00:18]} 22. a3 {[%emt 0:01:10]} Bd7 {[%emt 0:00:36]} 23. Rfe1 {[%emt 0:01:15]} Rfc8 {[%emt 0:01:07]} 24. g3 {[%emt 0:00:12]} c6 {[%emt 0:00:28]} 25. Ba2 {[%emt 0:00:04]} Be6 {[%emt 0:00:02]} 26. Bxe6 {[%emt 0:00:23]} Qxe6 {[%emt 0:00:01]} 27. Nd2 {[%emt 0:00:09]} Rd8 {[%emt 0:00:08]} 28. Qe2 {[%emt 0:00:18]} Qa2 {[%emt 0:01:42]} 29. Nf1 {[%emt 0:01:48]} Nc4 {[%emt 0:00:14]} 30. Ne3 {[%emt 0:00:02]} Nxe3 {[%emt 0:01:36]} 31. fxe3 {[%emt 0:00:53]} g6 {[%emt 0:00:39]} 32. Kg2 {[%emt 0:00:10]} h5 {[%emt 0:00:03]} 33. Rd2 {[%emt 0:00:32]} Rxd2 {[%emt 0:00:11]} 34. Qxd2 {[%emt 0:00:01]} Qc4 {[%emt 0:00:01]} 35. Kf3 {[%emt 0:00:11]} Qe6 $1 {[%emt 0:00:10]} 36. Kg2 {[%emt 0:00:19] [#]} ({Vorzuziehen ist} 36. Kf2) 36... h4 {[%emt 0:00:12]} ({Besser ist} 36... Qg4 $1 {[%mdl 512]} 37. Rf1 (37. Qd3 h4) 37... Qxe4+ 38. Kg1 Rf8) 37. Qe2 {[%emt 0:00:42]} hxg3 {[%emt 0:00:21]} (37... h3+ $142 38. Kf2 Kg7) 38. hxg3 $17 {[%emt 0:00:03]} Kg7 {[%emt 0:00:00]} 39. g4 {[%emt 0:00:24]} Rh8 {[%emt 0:01:38]} 40. Rh1 $2 {[%emt 0:00:10]} (40. Rf1 $17) 40... Rxh1 $19 {[%emt 0:00:07]} 41. Kxh1 {[%emt 0:00:01]} Kh6 {[%emt 0:00:00]} 42. Kh2 $2 {[%emt 0:00:41]} (42. c4 {war erzwungen.} bxc4 (42... Qxc4 43. Qh2+ Kg7 44. Qxe5+ Kf8 45. g5 $11) 43. Kg2) 42... Kg5 $19 {[%emt 0:00:03]} 43. Kg3 {[%emt 0:00:39]} Qd7 {[%emt 0:01:03]} 44. c4 {[%emt 0:00:17]} f6 {[%emt 0:00:03]} (44... bxc4 $2 45. Qxc4 Qxg4+ 46. Kf2 $19) 45. cxb5 {[%emt 0:00:17]} cxb5 {[%emt 0:00:01]} 46. Kf2 {[%emt 0:00:24]} Kh4 {[%emt 0:00:54]} (46... Qxg4 47. Qxb5 Qh4+ (47... Qxe4 48. b4 $17) 48. Ke2 $17) 47. Qe1 {[%emt 0:00:11]} (47. Qf1 $142 Qxg4 48. Qxb5) 47... Qxg4 $19 {[%emt 0:00:11]} 48. Qb4 {[%emt 0:00:00]} Qd7 {[%emt 0:00:30]} 49. Qe1 {[%emt 0:00:09]} Kg5 {[%emt 0:00:06]} 50. Qe2 {[%emt 0:00:13]} Qc6 {[%emt 0:00:11]} 51. Kf3 $2 {[%emt 0:00:11]} (51. Qd3) 51... f5 $19 {[%emt 0:00:09]} 52. Kf2 Qc4 {[%emt 0:00:53]} (52... Qxe4 $2 53. Qxb5 Qh4+ 54. Ke2 $19) 53. Qd1 {[%emt 0:00:01]} Qxe4 {[%emt 0:00:10]} (53... fxe4 54. Qd8+ Kf5 55. Kg3 $15) 54. Qd8+ {[%emt 0:00:02]} Kg4 {[%emt 0:00:21]} 55. Qd1+ {[%emt 0:00:01]} Kh4 {[%emt 0:00:02]} 56. Qe2 {[%emt 0:00:32]} Qd5 {[%emt 0:00:19]} (56... f4 $142 57. Qe1 Qxe3+ 58. Qxe3 fxe3+ 59. Kxe3 g5 60. Ke4 g4 61. Ke3 g3 62. Kf3 Kh3 63. Ke4 g2 64. Kxe5 g1=Q (64... g1=B 65. Kd6 $11) 65. Kd6 Qb6+ 66. Kd5 Kg4 67. Ke5 Kf3 68. Kf5 Qd6 (68... Qc5+ 69. Kf6 Kf4 70. Kg6 Qe7 71. b3 axb3 72. Kh6 b2 73. a4 b1=Q 74. axb5 Qeh7#) 69. Kg5 Qe6 70. b3 axb3 (70... Qxb3 71. Kg6 Qe6+ 72. Kg7 Qe7+ 73. Kh6 Qf7 74. Kg5 Qe6 75. Kh5 Kf4 76. Kh4 Qh6#) 71. Kh5 Kf4 (71... b2 72. a4 b1=Q 73. a5 Qh7+ 74. Kg5 Qhh6#) 72. a4 bxa4 73. Kh4 Qh6#) 57. Qc2 $19 {[%emt 0:00:01]} Kh3 {[%emt 0:00:26]} 58. Kg1 {[%emt 0:00:10]} Qf3 {[%emt 0:00:10]} 59. Qh2+ {[%emt 0:00:20]} Kg4 {[%emt 0:00:01]} 60. Qd2 {[%emt 0:00:03]} g5 {[%emt 0:00:08]} 61. Kh2 {[%emt 0:00:13]} e4 {[%emt 0:00:23]} 62. Kg1 {[%emt 0:00:08]} Qg3+ {[%emt 0:00:03]} 63. Kf1 {[%emt 0:00:05]} Qf3+ {[%emt 0:00:14]} 64. Kg1 {[%emt 0:00:02]} f4 {[%emt 0:00:16]} 65. exf4 {[%emt 0:00:26]} e3 {[%emt 0:00:24]} 66. Qd8 {[%emt 0:00:07]} Qf2+ {[%emt 0:00:13]} 67. Kh1 {[%emt 0:00:01]} Qf1+ {[%emt 0:00:19]} ({Minderwertig wäre} 67... Qxb2 68. Qxg5+ Kf3 69. Qh5+ Kxf4 70. Qh4+ Kf5 71. Qh3+ Kg6 72. Qg3+ Kf5 73. Qh3+ Kg5 74. Qg3+ Kh5 75. Qh3+ Kg6 76. Qg3+ Kf7 77. Qc7+ Kg6 (77... Ke8 78. Qc8+ Kf7 79. Qd7+ Kf6 80. Qd6+ Kf5 81. Qd7+ Ke4 82. Qh7+ Kd5 83. Qg8+ Kc5 84. Qc8+ Kd6 85. Qf8+ Kd5 86. Qf7+ Kc6 87. Qe6+ Kc5 88. Qc8+ Kd5 89. Qg8+ Kc5 90. Qc8+ $11) 78. Qg3+ $11) 68. Kh2 {[%emt 0:00:01]} Qxf4+ {[%emt 0:00:01]} (68... Kxf4 $2 {zu gefräßig.} 69. Qf6+ Ke4 70. Qxf1 $18) 69. Kg1 {[%emt 0:00:14]} Kg3 {[%emt 0:00:09]} 0-1

[Event "American Cup Open Elimination 2024"]
[Site "Saint Louis"]
[Date "2024.03.16"]
[Round "2.4"]
[White "Caruana, Fabiano"]
[Black "Dominguez Perez, Leinier"]
[Result "1-0"]
[ECO "C65"]
[WhiteElo "2804"]
[BlackElo "2749"]
[Annotator "RC"]
[PlyCount "147"]
[EventDate "2024.03.11"]
[EventType "k.o."]
[EventCountry "USA"]
[SourceTitle "playchess.com"]
[Source "ChessBase"]
[SourceQuality "1"]
[TimeControl "1500+10"]

1. e4 {[%emt 0:10:01]} e5 {[%emt 0:10:02]} 2. Nf3 {[%emt 0:00:01]} Nc6 {[%emt 0:00:01]} 3. Bb5 {[%emt 0:00:02]} Nf6 {[%emt 0:00:03]} 4. d3 {[%emt 0:00:01]} Bc5 {[%emt 0:00:03]} 5. Bxc6 {[%emt 0:00:02]} dxc6 {[%emt 0:00:01]} 6. O-O {[%emt 0:00:02]} Nd7 {[%emt 0:00:02]} 7. Nbd2 {[%emt 0:00:03]} O-O {[%emt 0:00:14]} 8. Nc4 {[%emt 0:00:03]} f6 {[%emt 0:00:03]} 9. a4 {[%emt 0:00:09]} a5 {[%emt 0:00:03]} 10. Nh4 {[%emt 0:00:12]} Rf7 {[%emt 0:00:07]} 11. Kh1 {[%emt 0:00:16]} Nf8 {[%emt 0:00:36]} 12. Be3 {[%emt 0:00:08]} Bxe3 {[%emt 0:00:08]} 13. Nxe3 {[%emt 0:00:01]} Ne6 {[%emt 0:00:43]} 14. Nhf5 {[%emt 0:00:36]} c5 {[%emt 0:01:19]} 15. b3 {[%emt 0:00:01]} Kh8 {[%emt 0:00:33]} 16. f3 {[%emt 0:00:06]} Nd4 {[%emt 0:00:26]} 17. Ng3 {[%emt 0:00:04]} Be6 {[%emt 0:00:23]} 18. Qd2 {[%emt 0:00:23]} Qd6 {[%emt 0:00:25]} 19. Rf2 {[%emt 0:00:19]} b6 {[%emt 0:00:28]} 20. h3 {[%emt 0:00:09]} Rd8 {[%emt 0:00:38]} 21. Rb1 {[%emt 0:01:58]} Kg8 {[%emt 0:01:15]} 22. Qc3 {[%emt 0:00:05]} g6 {[%emt 0:01:05]} 23. Nc4 {[%emt 0:00:24]} Bxc4 {[%emt 0:00:25]} 24. Qxc4 {[%emt 0:00:01]} Ne6 {[%emt 0:00:30]} 25. Ne2 {[%emt 0:00:35]} Kg7 {[%emt 0:00:12]} 26. Rbf1 {[%emt 0:00:09]} Nf4 {[%emt 0:00:32]} 27. Ng1 {[%emt 0:00:07]} Qe6 {[%emt 0:00:35]} 28. g3 {[%emt 0:01:40]} Qxc4 {[%emt 0:00:02]} 29. bxc4 {[%emt 0:00:01]} Ne6 {[%emt 0:00:02]} 30. f4 {[%emt 0:00:01]} Rdf8 {[%emt 0:01:40]} 31. Re1 {[%emt 0:03:20]} Nd4 {[%emt 0:02:18]} 32. h4 {[%emt 0:00:02]} f5 {[%emt 0:01:45]} 33. Nh3 {[%emt 0:00:03]} exf4 {[%emt 0:01:17]} 34. Nxf4 {[%emt 0:00:02]} Re8 {[%emt 0:00:31]} 35. Ref1 {[%emt 0:02:06]} Rd7 {[%emt 0:01:35]} 36. Nd5 {[%emt 0:00:49]} c6 {[%emt 0:00:06]} 37. Nc3 {[%emt 0:00:01]} h5 {[%emt 0:00:18]} 38. Kg2 {[%emt 0:00:12]} fxe4 {[%emt 0:00:12]} 39. Nxe4 {[%emt 0:00:01]} Nf5 {[%emt 0:00:01]} 40. Kh3 {[%emt 0:00:12]} Re5 {[%emt 0:00:39]} 41. Rb1 {[%emt 0:00:11]} Rb7 {[%emt 0:00:01]} 42. g4 {[%emt 0:01:00]} hxg4+ {[%emt 0:00:04]} 43. Kxg4 {[%emt 0:00:01]} Nh6+ {[%emt 0:00:37]} 44. Kh3 {[%emt 0:00:04]} Nf5 {[%emt 0:00:11]} 45. Rg1 {[%emt 0:00:34]} Rb8 {[%emt 0:00:15]} 46. h5 {[%emt 0:00:47]} Ne7 {[%emt 0:00:01]} 47. hxg6 {[%emt 0:00:02]} Rh8+ {[%emt 0:00:04]} 48. Kg3 {[%emt 0:00:15]} Nxg6 {[%emt 0:00:14]} 49. Rgf1 {[%emt 0:00:10]} Re7 {[%emt 0:00:08]} 50. Rf6 {[%emt 0:00:13]} Ne5 {[%emt 0:00:16]} 51. R6f5 {[%emt 0:00:25]} Rh6 {[%emt 0:00:12]} 52. Re1 {[%emt 0:02:20]} Nf7 {[%emt 0:00:11]} 53. Rb1 {[%emt 0:00:24]} Nd6 {[%emt 0:00:15]} 54. Nxd6 {[%emt 0:00:18]} Rxd6 {[%emt 0:00:02]} 55. Rxb6 {[%emt 0:00:01]} Re2 {[%emt 0:00:10]} 56. Rb7+ {[%emt 0:00:49]} Kg6 {[%emt 0:00:09]} 57. Rf2 {[%emt 0:00:01]} Re1 {[%emt 0:00:19]} 58. Ra7 {[%emt 0:00:11]} Re5 {[%emt 0:00:10]} 59. Rxa5 {[%emt 0:00:13]} Rde6 {[%emt 0:00:08]} 60. Ra8 {[%emt 0:00:09]} Kg7 {[%emt 0:00:08]} 61. Ra7+ {[%emt 0:00:13]} Kg6 {[%emt 0:00:02]} 62. a5 {[%emt 0:00:43]} Re1 {[%emt 0:00:10]} 63. a6 {[%emt 0:00:52]} Ra1 {[%emt 0:00:03]} 64. Rg2 {[%emt 0:00:20]} Kf5 {[%emt 0:00:26]} 65. Ra8 {[%emt 0:00:32]} Rg6+ {[%emt 0:00:04]} 66. Kf2 {[%emt 0:00:05]} Rf6 {[%emt 0:00:06]} 67. Ke2 {[%emt 0:00:09]} Re6+ {[%emt 0:00:20]} 68. Kd2 {[%emt 0:00:01]} Re7 {[%emt 0:00:01]} 69. Rf2+ {[%emt 0:00:12]} Kg6 {[%emt 0:00:23]} 70. Rg8+ {[%emt 0:00:03]} Kh7 {[%emt 0:00:02]} 71. Rg5 {[%emt 0:00:09]} Kh6 {[%emt 0:00:01]} 72. Rxc5 {[%emt 0:00:07]} Re6 {[%emt 0:00:01]} 73. Rcf5 {[%emt 0:00:13]} Kg6 {[%emt 0:00:24]} 74. R5f3 {[%emt 0:00:02]} 1-0

[Event "American Cup Open Elimination 2024"]
[Site "Saint Louis"]
[Date "2024.03.16"]
[Round "2.4"]
[White "So, Wesley"]
[Black "Sevian, Samuel"]
[Result "1-0"]
[ECO "E91"]
[WhiteElo "2789"]
[BlackElo "2697"]
[Annotator "TA"]
[PlyCount "105"]
[EventDate "2024.03.11"]
[EventType "k.o."]
[EventCountry "USA"]
[SourceTitle "playchess.com"]
[Source "ChessBase"]
[SourceQuality "1"]
[TimeControl "1500+10"]

1. d4 {[%emt 0:10:02]} Nf6 {[%emt 0:10:01]} 2. c4 {[%emt 0:00:02]} g6 {[%emt 0:00:26]} 3. Nc3 {[%emt 0:00:11]} Bg7 {[%emt 0:00:01]} 4. e4 {[%emt 0:00:01]} d6 {[%emt 0:00:01]} 5. Nf3 {[%emt 0:00:06]} O-O {[%emt 0:00:04]} 6. Be2 {[%emt 0:00:02]} Nc6 {[%emt 0:00:27]} 7. Be3 {[%emt 0:01:54] E91: King's Indian: Classical: 6 Be2, unusual replies including 6...c5 and 6...Bg4.} Ng4 {[%emt 0:01:34] Nowadays more popular than 7...e5.} 8. Bg5 {[%emt 0:00:04]} h6 {[%emt 0:00:01]} 9. Bh4 {[%emt 0:00:01]} g5 {[%emt 0:00:01]} 10. Bg3 {[%emt 0:00:13]} e5 11. d5 {[%emt 0:00:04]} Nd4 {[%emt 0:00:01]} 12. Nxd4 {[%emt 0:01:06]} exd4 {[%emt 0:00:12]} 13. Nb5 {[%emt 0:00:02]} Nf6 {[%emt 0:00:29]} 14. f3 {[%emt 0:00:04]} Nh5 {[%emt 0:00:01]} 15. Bf2 {[%emt 0:00:19]} d3 {[%emt 0:01:11]} 16. Bxd3 {[%emt 0:00:05]} Bxb2 {[%emt 0:00:07]} 17. Rb1 {[%emt 0:00:06]} Bg7 {[%emt 0:00:45]} 18. O-O {[%emt 0:00:20]} (18. Bxa7 $2 c6 19. Be3 (19. dxc6 $2 Qa5+ 20. Kf1 bxc6 $19) 19... cxb5 $19) (18. Nxa7 $6 Nf4 $11) 18... Nf4 {[%emt 0:02:15]} 19. Bc2 $146 {[%emt 0:00:04]} (19. Nxa7 Bh3 20. gxh3 Nxh3+ 21. Kh1 Nxf2+ 22. Rxf2 Rxa7 $11) ({Predecessor:} 19. Nd4 Be5 20. Bc2 Qf6 21. Nb5 a6 22. Nxc7 Rb8 23. Ba7 Bd7 24. Bxb8 Rxb8 25. g3 {½-½ Rychagov,A (2547)-Golubev,M (2461) Titled Tuesday intern op 02nd Aug Late blitz 2022 (7)}) 19... h5 {[%emt 0:01:50]} (19... c5 $14) 20. Be3 $16 {[%emt 0:01:16]} (20. Bxa7 $2 {perishes.} Rxa7 21. Nxa7 Bd4+ 22. Kh1 Bxa7 $19) ({Resist} 20. Nxa7 b6 (20... Bh3 21. gxh3 Nxh3+ 22. Kh1 $16) 21. Nc6 Qf6 $16) 20... Ng6 {[%emt 0:03:07]} 21. Qd2 {[%emt 0:00:15]} Bf6 {[%emt 0:00:29]} 22. Nxa7 {[%emt 0:01:19]} (22. Bxa7 b6 23. Rb4 Be5 $11) 22... Rxa7 {[%emt 0:00:06]} (22... Ne5 {was necessary.}) 23. Bxa7 $18 {[%emt 0:00:02]} b6 {[%emt 0:00:00] [#]} 24. a4 $1 {[%emt 0:00:05]} Ne5 {[%emt 0:00:05]} 25. Bb3 {[%emt 0:00:55]} c5 {[%emt 0:01:07]} 26. Bc2 {[%emt 0:02:18]} Nxc4 {[%emt 0:03:38]} 27. Qd3 {[%emt 0:00:04]} Bd4+ {[%emt 0:00:16]} 28. Kh1 {[%emt 0:00:01]} Ne5 {[%emt 0:00:02]} (28... Ne3 $16) 29. Bxb6 $18 {[%emt 0:00:09]} Qf6 {[%emt 0:00:26]} 30. Qe2 {[%emt 0:00:18]} h4 {[%emt 0:00:05]} (30... Ng6 {keeps fighting.} 31. Ba5 Nf4) 31. Ba5 $18 {[%emt 0:00:40]} Ng6 {[%emt 0:00:01]} 32. Bd2 {[%emt 0:00:01]} Be5 {[%emt 0:00:00]} (32... Nf4 $142 33. e5 Qxe5) 33. f4 {[%emt 0:01:42]} gxf4 {[%emt 0:00:35]} 34. a5 {[%emt 0:00:25]} Bd4 {[%emt 0:00:37]} 35. a6 {[%emt 0:00:21]} c4 {[%emt 0:00:07]} 36. Qxc4 {[%emt 0:00:08]} h3 {[%emt 0:00:00]} 37. Qe2 {[%emt 0:00:39]} hxg2+ $2 {[%emt 0:00:10]} (37... Qg5 38. gxh3 Bxh3) 38. Qxg2 $18 {[%emt 0:00:01]} Bxa6 {[%emt 0:00:37]} 39. Rxf4 {[%emt 0:00:02]} Qg7 40. Rf3 {[%emt 0:00:14]} Rc8 {[%emt 0:00:01]} 41. Bd3 {[%emt 0:00:08]} Bxd3 {[%emt 0:00:21]} 42. Rxd3 {[%emt 0:00:02]} Be5 {[%emt 0:00:03]} 43. Rdb3 {[%emt 0:00:10]} Qf8 {[%emt 0:00:08]} 44. Rf1 {[%emt 0:00:28]} Rc2 {[%emt 0:00:32]} 45. Rbf3 {[%emt 0:00:05]} Qg7 {[%emt 0:00:10]} 46. Rxf7 {[%emt 0:00:16]} Qxf7 {[%emt 0:00:02]} 47. Rxf7 {[%emt 0:00:01]} Kxf7 {[%emt 0:00:01]} 48. Qf2+ {[%emt 0:00:46]} Kg8 {[%emt 0:00:11]} 49. Qf5 {[%emt 0:00:16]} Kg7 {[%emt 0:00:15]} 50. Qg5 {[%emt 0:00:28]} Bf6 {[%emt 0:00:12]} (50... Kf7 $18 51. Qh6 Bg7) 51. Qh6+ {[%emt 0:00:02]} Kf7 {[%emt 0:00:06]} 52. Qh7+ {[%emt 0:00:06]} Bg7 {[%emt 0:00:05]} 53. Bh6 {[%emt 0:00:04]} 1-0

[Event "American Cup Open Elimination 2024"]
[Site "Saint Louis"]
[Date "2024.03.16"]
[Round "2.5"]
[White "Caruana, Fabiano"]
[Black "Dominguez Perez, Leinier"]
[Result "1-0"]
[ECO "D35"]
[WhiteElo "2804"]
[BlackElo "2749"]
[Annotator "TA"]
[PlyCount "109"]
[EventDate "2024.03.11"]
[EventType "k.o."]
[EventCountry "USA"]
[SourceTitle "playchess.com"]
[Source "ChessBase"]
[SourceQuality "1"]
[TimeControl "600+5"]

{[%evp 18,109,26,24,27,24,20,20,25,10,12,14,54,57,58,58,58,57,69,54,62,23,39,39,39,39,39,39,39,39,39,39,69,55,55,60,61,29,30,30,30,30,56,56,56,56,78,60,60,-34,53,58,58,17,16,16,16,14,16,0,18,18,43,8,229,231,279,255,257,308,291,317,432,433,461,353,460,428,432,417,668,621,575,568,731,720,963,908,972,950,5536,5122,29975,2979]} 1. d4 {[%emt 0:07:08]} Nf6 {[%emt 0:07:07]} 2. c4 {[%emt 0:00:04]} e6 {[%emt 0:00:04]} 3. Nc3 {[%emt 0:00:04]} d5 {[%emt 0:00:04]} 4. cxd5 {[%emt 0:00:04]} exd5 {[%emt 0:00:04]} 5. Bg5 {[%emt 0:00:05]} c6 {[%emt 0:00:04]} 6. e3 {[%emt 0:00:04]} Bf5 {[%emt 0:00:04]} 7. Qf3 {[%emt 0:00:04]} Bg6 {[%emt 0:00:04]} 8. Bxf6 {[%emt 0:00:05]} Qxf6 {[%emt 0:00:05]} 9. Qxf6 {[%emt 0:00:04]} gxf6 {[%emt 0:00:04]} 10. h4 {[%emt 0:00:04]} h5 {[%emt 0:00:04]} 11. Rd1 {[%emt 0:00:05]} Nd7 {[%emt 0:00:17]} 12. Bd3 {[%emt 0:00:04]} Rg8 {[%emt 0:00:22] The position is equal.} 13. Nge2 {[%emt 0:01:01]} Bd6 {[%emt 0:00:07]} 14. Kf1 {[%emt 0:00:05]} Bxd3 {[%emt 0:00:13]} 15. Rxd3 {[%emt 0:00:05]} f5 {[%emt 0:00:04]} 16. g3 {[%emt 0:00:35]} Ke7 {[%emt 0:00:07]} 17. Kg2 {[%emt 0:00:04]} Nf6 {[%emt 0:00:06]} 18. Rdd1 {[%emt 0:00:08]} Ne4 {[%emt 0:00:08]} 19. Nc1 {[%emt 0:00:19]} a5 {[%emt 0:00:42]} 20. N3e2 {[%emt 0:00:07]} a4 {[%emt 0:00:08]} 21. Nd3 {[%emt 0:00:06]} Ra5 {[%emt 0:00:15]} 22. Rc1 {[%emt 0:00:07]} Rh8 {[%emt 0:00:13]} 23. Rc2 {[%emt 0:00:05]} Rg8 {[%emt 0:00:05]} 24. Rb1 {[%emt 0:00:05]} Rb5 {[%emt 0:00:23]} 25. Nef4 {[%emt 0:00:18]} Nf6 {[%emt 0:00:09]} 26. b4 {[%emt 0:00:33]} axb3 {[%emt 0:00:06]} 27. axb3 {[%emt 0:00:04]} Ra8 {[%emt 0:00:10]} 28. b4 {[%emt 0:00:06]} Ra3 {[%emt 0:00:15]} 29. Rcb2 {[%emt 0:00:13]} Ke8 {[%emt 0:00:27]} 30. Rb3 {[%emt 0:00:09]} Rxb3 {[%emt 0:00:23]} 31. Rxb3 {[%emt 0:00:04]} Rb6 {[%emt 0:00:04]} 32. Kf3 {[%emt 0:00:10]} Ke7 {[%emt 0:00:09]} 33. Nc5 {[%emt 0:00:11]} (33. Rb2 $14) 33... Bxc5 {[%emt 0:00:10]} (33... Ne4 $1 $15 34. Ra3 (34. Nxh5 $2 Nd2+ 35. Ke2 Nxb3 $19) 34... Rxb4) 34. dxc5 $15 {[%emt 0:00:04][%mdl 4096] Endgame. KRN-KRN} Ra6 {[%emt 0:00:03]} 35. b5 {[%emt 0:00:13]} Ra2 {[%emt 0:00:05]} 36. bxc6 {[%emt 0:00:05]} bxc6 {[%emt 0:00:03]} 37. Rb7+ {[%emt 0:00:04]} Ke8 {[%emt 0:00:07]} 38. Rc7 {[%emt 0:00:13][%cal Of4h3]} Ne4 {[%emt 0:00:05]} 39. Nh3 {[%emt 0:00:04]} (39. Rxc6 $2 Rxf2#) 39... Ra6 {[%emt 0:00:07]} 40. Ng5 {[%emt 0:00:05] Threatening Nxe4.} Nxc5 $2 {[%emt 0:00:05] Black cannot hold the game after this.} (40... Ra2 $11 {and Black has nothing to worry.} 41. Nh3 (41. Nxf7 $2 Rxf2#) 41... Ra6) 41. Rxf7 $18 {[%emt 0:00:05]} (41. Nxf7 Ra2 $11) 41... Ne4 {[%emt 0:00:04] [#] aiming for ...Nxg5+.} 42. Rxf5 {[%emt 0:00:04]} Nd2+ {[%emt 0:00:04]} 43. Kg2 {[%emt 0:00:04]} Ra2 {[%emt 0:00:05]} 44. Nh3 {[%emt 0:00:06]} Ne4 {[%emt 0:00:04]} 45. Rxh5 {[%emt 0:00:04]} Ke7 {[%emt 0:00:03]} 46. Rf5 {[%emt 0:00:07]} Ke6 {[%emt 0:00:04]} 47. Rf8 {[%emt 0:00:03]} c5 {[%emt 0:00:05]} 48. h5 {[%emt 0:00:04][%cal Bh4h5,Bh5h6][%mdl 32]} c4 {[%emt 0:00:05]} (48... Ke7 $142 49. Rf5 Nf6) 49. h6 {[%emt 0:00:05] Hoping for h7.} Ra7 {[%emt 0:00:04]} 50. Nf4+ {[%emt 0:00:06]} Ke5 {[%emt 0:00:06]} 51. Rh8 {[%emt 0:00:08]} Nf6 {[%emt 0:00:07] [#] Inhibits h7.} 52. g4 $1 {[%emt 0:00:03][%cal Bg3g4,Bg4g5,Bg5g6][%mdl 32]} c3 {[%emt 0:00:05][%cal Bc4c3,Bc3c2][%mdl 32]} (52... d4 53. g5) 53. g5 {[%emt 0:00:05]} Ne4 {[%emt 0:00:07]} 54. g6 {[%emt 0:00:05] Re8+ would kill now.} c2 {[%emt 0:00:05]} 55. Rc8 {[%emt 0:00:04] Weighted Error Value: White=0.14 (very precise) /Black=0.30.  Loses game:     	---       	Black=1      Mistake:       	White=1     	Black=2      Inaccurate:     	White=4     	Black=6      OK:         	White=15    	Black=13     Best:        	White=1     	---} (55. g7 $142 c1=Q 56. Re8+ (56. g8=R Qd2 $11) (56. g8=Q Qc6 $18) 56... Kd6 57. Re6+ (57. g8=N $2 {too greedy.} Ra1 $19) (57. g8=Q Qd1 $18) 57... Kc5 58. Nd3+ (58. g8=R $2 Qd1 $19) (58. g8=Q Qa1 $18) 58... Kb5 59. Nxc1 Nc5 60. g8=Q (60. g8=R Nxe6 61. Nd3 Rh7 $18) 60... Nxe6 61. Qxe6) 1-0